fUST/lending_fUST_20251021
["ID","MTS","AMOUNT","RATE_DAILY","PERIOD"]
[391912036,1760978899642,150.0,0.00021506,2]
[391912037,1760978900180,182.22,0.00022483,2]
[391912038,1760978900673,242.96,0.00023461,2]
[391912101,1760978955757,2324.56984176,0.000241,2]
[391912141,1760978964695,-151.92934853,0.000241,2]
[391912142,1760978967264,164.835611,0.00024075,2]
[391912143,1760978968976,1000.0,0.00033804,30]
[391912144,1760978974949,156.80778272,0.0002407,2]
[391912175,1760978983289,150.0,0.00020595,2]
[391912176,1760978983480,150.0,0.00021576,2]
[391912177,1760978983928,212.04,0.00022557,2]
[391912178,1760978984401,282.72,0.00023537,2]
[391912179,1760978995718,1500.0,0.00033804,30]
[391912180,1760978999601,33228.89985454,0.00033804,120]
[391912181,1760979004584,154.0,9.3e-07,2]
[391912182,1760979023166,2000.0,0.00033804,30]
[391912183,1760979023487,6677.44338525,0.00033804,120]
[391912229,1760979032722,-156.23506248,0.000241,2]
[391912230,1760979032731,-153.20792754,0.0002417,2]
[391912232,1760979032740,-3079.57899,0.00024175,2]
[391912234,1760979032750,-685.24392251,0.00024175,2]
[391912236,1760979032759,-156.35398593,0.000242,2]
[391912238,1760979032769,-260.44072342,0.000242,2]
[391912240,1760979032778,-300.0,0.00024258,2]
[391912242,1760979032787,-1187.0,0.00024259,2]
[391912244,1760979032796,-300.0,0.00024259,2]
[391912246,1760979032806,-300.0,0.00024259,2]
[391912248,1760979032815,-1200.0,0.00024259,2]
[391912250,1760979032824,-300.0,0.00024259,2]
[391912252,1760979032833,-402.9601108,0.0002426,10]
[391912253,1760979032843,-500.0,0.00024269,2]
[391912255,1760979032852,-500.0,0.00024269,2]
[391912257,1760979032861,-500.0,0.00024269,2]
[391912259,1760979032871,-357.19824814,0.00024269,2]
[391912261,1760979032883,-500.0,0.00024269,2]
[391912263,1760979032892,-500.0,0.00024269,2]
[391912265,1760979032902,-500.0,0.00024269,2]
[391912267,1760979032911,-500.0,0.00024269,2]
[391912269,1760979032920,-500.0,0.00024269,2]
[391912271,1760979032929,-500.0,0.00024269,2]
[391912273,1760979032938,-500.0,0.00024269,2]
[391912274,1760979032947,-500.0,0.00024269,2]
[391912276,1760979032956,-500.0,0.00024269,2]
[391912278,1760979032966,-500.0,0.00024269,2]
[391912280,1760979032975,-500.0,0.00024269,2]
[391912282,1760979032985,-500.0,0.00024269,2]
[391912284,1760979032994,-500.0,0.00024269,2]
[391912286,1760979033004,-409.6258237,0.00024269,2]
[391912288,1760979033013,-454.87608076,0.00024269,2]
[391912290,1760979033022,-500.0,0.00024269,2]
[391912292,1760979033032,-500.0,0.00024269,2]
[391912294,1760979033042,-500.0,0.00024269,2]
[391912296,1760979033052,-500.0,0.00024269,2]
[391912298,1760979033064,-500.0,0.00024269,2]
[391912300,1760979033073,-500.0,0.00024269,2]
[391912302,1760979033082,-500.0,0.00024269,2]
[391912304,1760979033091,-500.0,0.00024269,2]
[391912306,1760979033101,-507.94063393,0.00024269,2]
[391912308,1760979033110,-500.0,0.00024269,2]
[391912310,1760979033120,-500.0,0.00024269,2]
[391912312,1760979033133,-500.0,0.00024269,2]
[391912314,1760979033142,-500.0,0.00024269,2]
[391912315,1760979033153,-500.0,0.00024269,2]
[391912317,1760979033162,-500.0,0.00024269,2]
[391912319,1760979033171,-500.0,0.00024269,2]
[391912321,1760979033181,-500.0,0.00024269,2]
[391912323,1760979033190,-500.0,0.00024269,2]
[391912325,1760979033200,-500.0,0.00024269,2]
[391912327,1760979033208,-500.0,0.00024269,2]
[391912329,1760979033218,-500.0,0.00024269,2]
[391912331,1760979033227,-500.0,0.00024269,2]
[391912333,1760979033236,-500.0,0.00024269,2]
[391912335,1760979033245,-500.0,0.00024269,2]
[391912337,1760979033255,-500.0,0.00024269,2]
[391912338,1760979033264,-500.0,0.00024269,2]
[391912340,1760979033274,-500.0,0.00024269,2]
[391912342,1760979033284,-500.0,0.00024269,2]
[391912344,1760979033294,-500.0,0.00024269,2]
[391912346,1760979033303,-500.0,0.00024269,2]
[391912348,1760979033313,-500.0,0.00024269,2]
[391912350,1760979033324,-500.0,0.00024269,2]
[391912352,1760979033333,-500.0,0.00024269,2]
[391912355,1760979033344,-500.0,0.00024269,2]
[391912357,1760979033354,-500.0,0.00024269,2]
[391912359,1760979033363,-500.0,0.00024269,2]
[391912361,1760979033373,-500.0,0.00024269,2]
[391912363,1760979033383,-500.0,0.00024269,2]
[391912365,1760979033392,-500.0,0.00024269,2]
[391912367,1760979033401,-500.0,0.00024269,2]
[391912368,1760979033411,-500.0,0.00024269,2]
[391912369,1760979033420,-500.0,0.00024269,2]
[391912370,1760979033429,-500.0,0.00024269,2]
[391912371,1760979033438,-500.0,0.00024269,2]
[391912372,1760979033447,-500.0,0.00024269,2]
[391912373,1760979033455,-500.0,0.00024269,2]
[391912374,1760979033464,-500.0,0.00024269,2]
[391912375,1760979033472,-500.0,0.00024269,2]
[391912376,1760979033481,-500.0,0.00024269,2]
[391912377,1760979033490,-549.54718955,0.00024269,2]
[391912378,1760979033499,-500.0,0.00024269,2]
[391912379,1760979033507,-500.0,0.00024269,2]
[391912380,1760979033516,-477.46759537,0.00024269,2]
[391912381,1760979033525,-500.0,0.00024269,2]
[391912382,1760979033533,-500.0,0.00024269,2]
[391912383,1760979033542,-500.0,0.00024269,2]
[391912384,1760979033551,-500.0,0.00024269,2]
[391912385,1760979033560,-297.01926048,0.00024269,2]
[391912386,1760979033569,-500.0,0.00024269,2]
[391912387,1760979033578,-500.0,0.00024269,2]
[391912389,1760979033588,-500.0,0.00024269,2]
[391912391,1760979033597,-500.0,0.00024269,2]
[391912393,1760979033606,-500.0,0.00024269,2]
[391912395,1760979033619,-500.0,0.00024269,2]
[391912397,1760979033628,-500.0,0.00024269,2]
[391912398,1760979033638,-500.0,0.00024269,2]
[391912400,1760979033647,-250.95400021,0.00024269,2]
[391912402,1760979033656,-500.0,0.00024269,2]
[391912404,1760979033666,-500.0,0.00024269,2]
[391912406,1760979033675,-500.0,0.00024269,2]
[391912408,1760979033684,-500.0,0.00024269,2]
[391912410,1760979033694,-500.0,0.00024269,2]
[391912412,1760979033703,-500.0,0.00024269,2]
[391912414,1760979033712,-500.0,0.00024269,2]
[391912416,1760979033722,-500.0,0.00024269,2]
[391912418,1760979033731,-500.0,0.00024269,2]
[391912420,1760979033740,-500.0,0.00024269,2]
[391912422,1760979033749,-500.0,0.00024269,2]
[391912424,1760979033759,-500.0,0.00024269,2]
[391912426,1760979033768,-500.0,0.00024269,2]
[391912428,1760979033777,-500.0,0.00024269,2]
[391912430,1760979033787,-211.77634058,0.00024269,2]
[391912432,1760979033796,-50000.0,0.0002427,2]
[391912434,1760979033806,-500.0,0.00024273,2]
[391912436,1760979033814,-500.0,0.00024273,2]
[391912437,1760979033824,-826.49,0.00024275,3]
[391912438,1760979033833,-413.25,0.00024275,3]
[391912440,1760979033842,-206.62,0.00024275,3]
[391912441,1760979033851,-619.9,0.00024275,3]
[391912443,1760979033861,-500.0,0.00024283,2]
[391912445,1760979033870,-500.0,0.00024283,2]
[391912447,1760979033880,-500.0,0.00024283,2]
[391912449,1760979033891,-252.44602998,0.00024284,2]
[391912451,1760979033901,-214.84328998,0.00024284,2]
[391912453,1760979033910,-500.0,0.00024284,2]
[391912455,1760979033920,-500.0,0.00024284,2]
[391912457,1760979033930,-311.46642737,0.00024284,2]
[391912459,1760979033939,-351549.43722843,0.00024285,2]
[391912461,1760979033953,-18450.56277157,0.00024285,2]
[391912463,1760979033962,-15076.15,0.000243,7]
[391912465,1760979033971,-402.3162272,0.00024374,2]
[391912467,1760979033981,-500.0,0.00024393,2]
[391912468,1760979033990,-415.94436557,0.00024393,2]
[391912471,1760979034013,-84.05563443,0.00024393,2]
[391912472,1760979034023,-356.96521394,0.00024393,2]
[391912473,1760979034033,-353.4,0.00024518,2]
[391912474,1760979034043,-151.0,0.000246,10]
[391912475,1760979034055,-176.18911668,0.0002477,2]
[391912476,1760979034064,-151.0,0.000248,7]
[391912477,1760979034074,-7081.2111844,0.000248,2]
[391912478,1760979034085,-978.9846542,0.000248,2]
[391912479,1760979034536,2000.0,0.00033804,30]
[391912518,1760979038566,-12803.3,0.0002426,10]
[391912521,1760979038577,-2053.5591245,0.000248,2]
[391912523,1760979038586,-1000.0,0.00024821,2]
[391912525,1760979038597,-300.0,0.00024871,20]
[391912526,1760979038606,-300.0,0.00024871,20]
[391912527,1760979038615,-300.0,0.00024871,20]
[391912529,1760979038626,-300.0,0.00024871,20]
[391912531,1760979038637,-300.0,0.00024871,20]
[391912533,1760979038647,-300.0,0.00024871,20]
[391912535,1760979038656,-300.0,0.00024871,20]
[391912537,1760979038666,-300.0,0.00024871,20]
[391912539,1760979038678,-300.0,0.00024871,20]
[391912541,1760979038691,-300.0,0.00024871,20]
[391912543,1760979038701,-300.0,0.00024871,20]
[391912545,1760979038710,-300.0,0.00024871,20]
[391912547,1760979038719,-300.0,0.00024871,20]
[391912549,1760979038729,-300.0,0.00024871,20]
[391912551,1760979038737,-300.0,0.00024871,20]
[391912553,1760979038747,-600.0,0.00024871,20]
[391912554,1760979038756,-500.0,0.00024873,2]
[391912555,1760979038766,-260.44072341,0.00024875,2]
[391912556,1760979038776,-2022.75099262,0.0002489,2]
[391912557,1760979038785,-151.0,0.000251,10]
[391912558,1760979038795,-1500.0,0.00025368,2]
[391912559,1760979038805,-199.17030581,0.0002537,2]
[391912560,1760979038815,-151.0,0.000254,14]
[391912561,1760979038825,-1406.80279911,0.00025434,2]
[391912562,1760979038834,-424.08,0.00025499,2]
[391912563,1760979038844,-260.44072341,0.0002555,2]
[391912564,1760979038854,-151.0,0.000256,10]
[391912565,1760979038863,-1652.98,0.00025645,3]
[391912566,1760979038872,-826.5,0.00025645,3]
[391912567,1760979038883,-413.24,0.00025645,3]
[391912569,1760979038894,-6031.99,0.00025645,2]
[391912571,1760979038905,-1011.37549631,0.0002569,2]
[391912573,1760979038915,-1406.80279911,0.00025694,2]
[391912575,1760979038925,-1011.37549631,0.000257,2]
[391912577,1760979038935,-44924.1257602,0.0002571,2]
[391912579,1760979038944,-160.0,0.00025825,2]
[391912592,1760979039151,-1000.0,0.00025856,30]
[391912593,1760979039179,-214.0,0.0002589,18]
[391912594,1760979039189,-151.0,0.000259,19]
[391912595,1760979039199,-2000.0,0.00025916,2]
[391912596,1760979039209,-222.15149494,0.0002597,2]
[391912597,1760979039219,-1406.80279911,0.00025976,2]
[391912598,1760979039229,-8000.0,0.00026197,3]
[391912599,1760979039238,-151.0,0.00026198,7]
[391912600,1760979039248,-500.0,0.00026198,7]
[391912601,1760979039258,-151.0,0.000262,14]
[391912602,1760979039267,-260.44072341,0.00026225,2]
[391912603,1760979039277,-151.0,0.00026253,7]
[391912604,1760979039286,-500.0,0.00026253,7]
[391912605,1760979039296,-1406.80279911,0.00026278,2]
[391912606,1760979039305,-300.0,0.00026299,2]
[391912607,1760979039315,-420.0,0.00026301,2]
[391912608,1760979039324,-360.0,0.00026301,2]
[391912609,1760979039334,-151.0,0.00026308,7]
[391912610,1760979039344,-500.0,0.00026308,7]
[391912611,1760979039353,-283.0,0.00026362,7]
[391912612,1760979039363,-500.0,0.00026362,7]
[391912613,1760979039372,-1406.80279911,0.00026365,2]
[391912614,1760979039381,-260.0,0.00026373,2]
[391912615,1760979039392,-500.0,0.00026417,7]
[391912616,1760979039401,-1680.0,0.00026421,2]
[391912617,1760979039412,-2000.0,0.00026464,2]
[391912618,1760979039422,-500.0,0.00026472,7]
[391912619,1760979039432,-494.77,0.0002648,2]
[391912620,1760979039441,-151.0,0.000265,20]
[391912621,1760979039451,-151.0,0.000265,18]
[391912622,1760979039461,-500.0,0.00026527,7]
[391912623,1760979039470,-245.13268407,0.0002657,2]
[391912624,1760979039479,-500.0,0.00026582,7]
[391912625,1760979039488,-500.0,0.00026636,7]
[391912626,1760979039498,-1011.37549631,0.0002669,2]
[391912627,1760979039507,-500.0,0.00026691,7]
[391912628,1760979039516,-151.0,0.000267,15]
[391912629,1760979039525,-151.0,0.000267,14]
[391912630,1760979039534,-2517.9181993,0.00026738,2]
[391912631,1760979039544,-3883.349776,0.00026738,2]
[391912632,1760979039553,-500.0,0.00026746,7]
[391912633,1760979039562,-1406.80279911,0.00026749,2]
[391912634,1760979039571,-500.0,0.00026801,7]
[391912635,1760979039580,-500.0,0.00026856,7]
[391912636,1760979039589,-178.15124216,0.000269,2]
[391912637,1760979039599,-260.44072341,0.000269,2]
[391912638,1760979039608,-8025.6949378,0.000269,2]
[391912639,1760979039617,-500.0,0.0002691,7]
[391912640,1760979039627,-360.0,0.00026921,2]
[391912641,1760979039637,-324.0,0.00026944,2]
[391912642,1760979039647,-1011.37549631,0.0002696,2]
[391912643,1760979039656,-402.75172646,0.00026963,2]
[391912644,1760979039665,-724.95310763,0.00026963,2]
[391912645,1760979039675,-1288.80552468,0.00026963,2]
[391912646,1760979039684,-2013.75863231,0.00026963,2]
[391912647,1760979039694,-454.92000336,0.00026963,2]
[391912648,1760979039703,-818.85600606,0.00026963,2]
[391912649,1760979039713,-1455.74401077,0.00026963,2]
[391912650,1760979039722,-472.90095283,0.00026963,2]
[391912651,1760979039731,-851.22171509,0.00026963,2]
[391912652,1760979039741,-1513.28304904,0.00026963,2]
[391912653,1760979039750,-2364.50476413,0.00026963,2]
[391912654,1760979039759,-3404.88686035,0.00026963,2]
[391912655,1760979039769,-4634.4293377,0.00026963,2]
[391912656,1760979039778,-6053.13219618,0.00026963,2]
[391912657,1760979039788,-7660.99543579,0.00026963,2]
[391912658,1760979039797,-432.10563748,0.00026963,2]
[391912659,1760979039806,-777.79014747,0.00026963,2]
[391912660,1760979039815,-1382.73803995,0.00026963,2]
[391912661,1760979039825,-500.0,0.00026965,7]
[391912662,1760979039834,-500.0,0.00026973,2]
[391912663,1760979039843,-160.07405755,0.00026973,2]
[391912664,1760979039853,-500.0,0.00026973,2]
[391912665,1760979039863,-185.563327,0.0002698,2]
[391912666,1760979039873,-1011.37549631,0.0002698,2]
[391912667,1760979039882,-2787.77956636,0.0002699,2]
[391912668,1760979039897,-246.34692257,0.0002699,2]
[391912669,1760979039907,-9232.79873107,0.00027,2]
[391912670,1760979039919,-1380.93549382,0.00027,2]
[391912671,1760979039930,-485.09999998,0.00027,2]
[391912672,1760979039941,-4932.7085666,0.00027,2]
[391912673,1760979039953,-8064.51190063,0.00027,2]
[391912674,1760979039964,-10305.46763939,0.00027,2]
[391912675,1760979039979,-441060.0,0.00027,2]
[391912676,1760979039990,-349028.35419267,0.00027,2]
[391912677,1760979040000,-994199.95672623,0.00027,2]
[391912678,1760979040013,-600.0,0.00027,14]
[391912679,1760979040022,-151.0,0.00027,7]
[391912680,1760979040033,-151.0,0.00027,7]
[391912681,1760979040043,-151.0,0.00027,7]
[391912682,1760979040053,-15076.15,0.00027,7]
[391912683,1760979040066,-151.0,0.00027,7]
[391912684,1760979040077,-151.0,0.00027,7]
[391912685,1760979040087,-151.0,0.00027,7]
[391912686,1760979040098,-151.0,0.00027,7]
[391912687,1760979040108,-151.0,0.00027,7]
[391912688,1760979040118,-151.0,0.00027,7]
[391912689,1760979040128,-151.0,0.00027,7]
[391912690,1760979040140,-151.0,0.00027,7]
[391912691,1760979040149,-151.0,0.00027,7]
[391912692,1760979040158,-151.0,0.00027,7]
[391912693,1760979040167,-160.558046,0.00027,7]
[391912694,1760979040177,-160.558046,0.00027,7]
[391912695,1760979040187,-160.558046,0.00027,7]
[391912697,1760979040197,-160.558046,0.00027,7]
[391912698,1760979040206,-151.0,0.00027,7]
[391912699,1760979040215,-151.0,0.00027,7]
[391912700,1760979040225,-151.0,0.00027,7]
[391912701,1760979040234,-151.0,0.00027,7]
[391912702,1760979040245,-151.0,0.00027,7]
[391912703,1760979040255,-151.0,0.00027,7]
[391912704,1760979040265,-151.0,0.00027,7]
[391912705,1760979040275,-151.0,0.00027,7]
[391912706,1760979040284,-151.0,0.00027,7]
[391912707,1760979040294,-151.0,0.00027,7]
[391912708,1760979040303,-151.0,0.00027,7]
[391912710,1760979040314,-151.0,0.00027,7]
[391912711,1760979040323,-151.0,0.00027,7]
[391912712,1760979040332,-151.0,0.00027,7]
[391912713,1760979040342,-151.0,0.00027,7]
[391912714,1760979040352,-151.0,0.00027,2]
[391912716,1760979040362,-276.228048,0.00027,7]
[391912717,1760979040371,-183.026705,0.00027,7]
[391912718,1760979040381,-151.0,0.00027,7]
[391912719,1760979040391,-151.0,0.00027,7]
[391912720,1760979040401,-151.0,0.00027,7]
[391912721,1760979040410,-151.0,0.00027,7]
[391912722,1760979040420,-151.0,0.00027,7]
[391912723,1760979040430,-151.0,0.00027,7]
[391912724,1760979040439,-229.470551,0.00027,7]
[391912725,1760979040449,-151.0,0.00027,7]
[391912726,1760979040458,-157.146065,0.00027,7]
[391912727,1760979040468,-200.400339,0.00027,7]
[391912728,1760979040477,-200.400339,0.00027,7]
[391912729,1760979040487,-151.0,0.00027,7]
[391912730,1760979040497,-151.0,0.00027,7]
[391912731,1760979040507,-151.0,0.00027,7]
[391912732,1760979040517,-151.0,0.00027,7]
[391912734,1760979040526,-205.28185,0.00027,7]
[391912735,1760979040536,-205.28185,0.00027,7]
[391912736,1760979040546,-151.0,0.00027,7]
[391912737,1760979040556,-151.0,0.00027,7]
[391912738,1760979040565,-151.0,0.00027,7]
[391912740,1760979040575,-205.28185,0.00027,7]
[391912741,1760979040584,-151.0,0.00027,7]
[391912742,1760979040594,-161.137904,0.00027,7]
[391912743,1760979040603,-205.28185,0.00027,7]
[391912744,1760979040613,-151.0,0.00027,7]
[391912745,1760979040623,-166.540274,0.00027,7]
[391912747,1760979040632,-166.540274,0.00027,7]
[391912748,1760979040643,-166.540274,0.00027,7]
[391912749,1760979040652,-166.540274,0.00027,7]
[391912750,1760979040662,-151.0,0.00027,7]
[391912751,1760979040671,-151.0,0.00027,7]
[391912752,1760979040681,-151.0,0.00027,7]
[391912754,1760979040690,-151.0,0.00027,7]
[391912756,1760979040701,-535.194147,0.00027,7]
[391912758,1760979040710,-151.0,0.00027,7]
[391912760,1760979040719,-535.194147,0.00027,7]
[391912762,1760979040729,-535.194147,0.00027,7]
[391912765,1760979040738,-535.194147,0.00027,7]
[391912767,1760979040749,-253.983329,0.00027,7]
[391912769,1760979040759,-253.983329,0.00027,7]
[391912771,1760979040768,-253.983329,0.00027,7]
[391912773,1760979040777,-253.983329,0.00027,7]
[391912774,1760979040787,-453.367066,0.00027,7]
[391912777,1760979040796,-453.367066,0.00027,7]
[391912778,1760979040806,-453.367066,0.00027,7]
[391912780,1760979040815,-453.367066,0.00027,7]
[391912783,1760979040824,-151.0,0.00027,7]
[391912785,1760979040835,-151.0,0.00027,7]
[391912787,1760979040844,-151.0,0.00027,7]
[391912789,1760979040853,-151.0,0.00027,7]
[391912791,1760979040863,-204.294519,0.00027,7]
[391912793,1760979040873,-204.294519,0.00027,7]
[391912795,1760979040883,-151.0,0.00027,7]
[391912796,1760979040894,-204.294519,0.00027,7]
[391912798,1760979040903,-204.294519,0.00027,7]
[391912800,1760979040913,-151.0,0.00027,7]
[391912802,1760979040923,-151.0,0.00027,7]
[391912804,1760979040934,-151.0,0.00027,7]
[391912806,1760979040945,-151.0,0.00027,7]
[391912808,1760979040954,-151.0,0.00027,7]
[391912810,1760979040964,-235.619447,0.00027,7]
[391912813,1760979040973,-235.619447,0.00027,7]
[391912815,1760979040983,-261.384855,0.00027,7]
[391912817,1760979040992,-235.619447,0.00027,7]
[391912819,1760979041001,-261.384855,0.00027,7]
[391912821,1760979041011,-235.619447,0.00027,7]
[391912823,1760979041020,-261.384855,0.00027,7]
[391912824,1760979041030,-261.384855,0.00027,7]
[391912827,1760979041040,-799.886058,0.00027,7]
[391912828,1760979041049,-799.886058,0.00027,7]
[391912831,1760979041062,-799.886058,0.00027,7]
[391912832,1760979041072,-233.656997,0.00027,7]
[391912834,1760979041081,-233.656997,0.00027,7]
[391912836,1760979041091,-799.886058,0.00027,7]
[391912838,1760979041100,-233.656997,0.00027,7]
[391912841,1760979041110,-187.798514,0.00027,7]
[391912842,1760979041120,-233.656997,0.00027,7]
[391912845,1760979041130,-187.798514,0.00027,7]
[391912846,1760979041140,-187.798514,0.00027,7]
[391912848,1760979041149,-187.798514,0.00027,7]
[391912850,1760979041159,-151.0,0.00027,7]
[391912852,1760979041168,-151.0,0.00027,7]
[391912854,1760979041177,-151.0,0.00027,7]
[391912856,1760979041186,-157.233478,0.00027,7]
[391912859,1760979041196,-151.0,0.00027,2]
[391912860,1760979041206,-157.233478,0.00027,7]
[391912862,1760979041216,-151.0,0.00027,2]
[391912865,1760979041225,-157.233478,0.00027,7]
[391912866,1760979041234,-151.0,0.00027,7]
[391912868,1760979041243,-157.233478,0.00027,7]
[391912870,1760979041252,-151.0,0.00027,2]
[391912872,1760979041262,-151.0,0.00027,2]
[391912874,1760979041271,-1188.789684,0.00027,7]
[391912876,1760979041283,-1188.789684,0.00027,7]
[391912878,1760979041292,-1188.789684,0.00027,7]
[391912880,1760979041302,-1188.789684,0.00027,7]
[391912882,1760979041312,-151.0,0.00027,7]
[391912884,1760979041322,-151.0,0.00027,7]
[391912886,1760979041331,-151.0,0.00027,7]
[391912888,1760979041341,-536.688976,0.00027,7]
[391912890,1760979041350,-536.688976,0.00027,7]
[391912892,1760979041359,-151.0,0.00027,7]
[391912894,1760979041368,-536.688976,0.00027,7]
[391912896,1760979041377,-151.0,0.00027,7]
[391912898,1760979041387,-151.0,0.00027,7]
[391912900,1760979041397,-151.0,0.00027,7]
[391912902,1760979041406,-536.688976,0.00027,7]
[391912904,1760979041415,-151.0,0.00027,7]
[391912906,1760979041425,-151.0,0.00027,7]
[391912908,1760979041435,-151.0,0.00027,7]
[391912909,1760979041444,-151.0,0.00027,7]
[391912911,1760979041454,-248.919693,0.00027,7]
[391912912,1760979041463,-248.919693,0.00027,7]
[391912913,1760979041472,-248.919693,0.00027,7]
[391912914,1760979041481,-248.919693,0.00027,7]
[391912915,1760979041490,-151.0,0.00027,7]
[391912916,1760979041500,-151.0,0.00027,7]
[391912917,1760979041510,-151.0,0.00027,7]
[391912918,1760979041519,-151.0,0.00027,7]
[391912919,1760979041530,-627.756314,0.00027,7]
[391912920,1760979041540,-1930.072369,0.00027,7]
[391912921,1760979041551,-627.756314,0.00027,7]
[391912922,1760979041562,-151.0,0.00027,7]
[391912923,1760979041575,-1930.072369,0.00027,7]
[391912924,1760979041585,-627.756314,0.00027,7]
[391912925,1760979041595,-1930.072369,0.00027,7]
[391912926,1760979041603,-151.0,0.00027,7]
[391912927,1760979041611,-1930.072369,0.00027,7]
[391912928,1760979041620,-627.756314,0.00027,7]
[391912929,1760979041629,-151.0,0.00027,7]
[391912930,1760979041639,-151.0,0.00027,7]
[391912931,1760979041649,-1304.693153,0.00027,7]
[391912932,1760979041658,-151.0,0.00027,7]
[391912933,1760979041667,-10000.0,0.00027,7]
[391912934,1760979041676,-151.0,0.00027,7]
[391912935,1760979041686,-1304.693153,0.00027,7]
[391912936,1760979041695,-1823.142174,0.00027,7]
[391912937,1760979041704,-1823.142174,0.00027,7]
[391912938,1760979041713,-10000.0,0.00027,7]
[391912939,1760979041722,-1304.693153,0.00027,7]
[391912940,1760979041732,-1823.142174,0.00027,7]
[391912941,1760979041741,-192.259718,0.00027,7]
[391912942,1760979041750,-1304.693153,0.00027,7]
[391912943,1760979041759,-1823.142174,0.00027,7]
[391912944,1760979041768,-10000.0,0.00027,7]
[391912945,1760979041777,-192.259718,0.00027,7]
[391912946,1760979041787,-192.259718,0.00027,7]
[391912947,1760979041796,-10000.0,0.00027,7]
[391912948,1760979041805,-192.259718,0.00027,7]
[391912949,1760979041814,-10000.0,0.00027,7]
[391912950,1760979041824,-151.0,0.00027,7]
[391912951,1760979041833,-151.0,0.00027,7]
[391912952,1760979041844,-10000.0,0.00027,7]
[391912953,1760979041854,-151.0,0.00027,7]
[391912954,1760979041864,-160.38176,0.00027,7]
[391912955,1760979041876,-160.38176,0.00027,7]
[391912956,1760979041885,-160.38176,0.00027,7]
[391912957,1760979041895,-10000.0,0.00027,7]
[391912958,1760979041905,-152.094476,0.00027,7]
[391912959,1760979041915,-160.38176,0.00027,7]
[391912960,1760979041925,-10000.0,0.00027,7]
[391912961,1760979041935,-151.0,0.00027,7]
[391912962,1760979041945,-10000.0,0.00027,7]
[391912963,1760979041955,-158.998876,0.00027,7]
[391912964,1760979041965,-161.844852,0.00027,7]
[391912965,1760979041975,-158.998876,0.00027,7]
[391912966,1760979041986,-161.844852,0.00027,7]
[391912967,1760979041996,-158.998876,0.00027,7]
[391912968,1760979042005,-654.203764,0.00027,7]
[391912969,1760979042015,-158.998876,0.00027,7]
[391912970,1760979042024,-654.203764,0.00027,7]
[391912971,1760979042033,-161.844852,0.00027,7]
[391912972,1760979042043,-1553.048247,0.00027,7]
[391912973,1760979042053,-161.844852,0.00027,7]
[391912974,1760979042067,-654.203764,0.00027,7]
[391912975,1760979042077,-151.0,0.00027,7]
[391912976,1760979042087,-1553.048247,0.00027,7]